bitfinex/quotes_SOLUSD_20240809
["timestamp","ask_amount","ask_price","bid_price","bid_amount"]
[1723184639756,27.22,157.23,157.19,22.2647]
[1723184640349,27.22,157.23,157.2,6.361]
[1723184640551,27.22,157.24,157.21,6.3607]
[1723184642266,22.6689,157.27,157.22,6.3604]
[1723184642568,27.22,157.29,157.26,6.3586]
[1723184643271,27.22,157.27,157.23,15.8992]
[1723184643453,6.3582,157.28,157.23,15.8992]
[1723184643454,27.22,157.25,157.23,15.8992]
[1723184643650,15.7293,157.32,157.23,15.8992]
[1723184643862,27.22,157.28,157.24,51.3596]
[1723184644544,27.22,157.28,157.25,6.3592]
[1723184644776,27.22,157.28,157.24,51.3596]
[1723184645945,6.3572,157.3,157.24,51.3596]
[1723184646253,27.22,157.28,157.27,6.3584]
[1723184646457,27.22,157.28,157.26,15.8971]
[1723184646764,15.7293,157.32,157.27,6.3584]
[1723184646969,6.3556,157.35,157.26,17.16869837]
[1723184647168,27.22,157.31,157.27,46.27143545]
[1723184647473,6.3544,157.37,157.29,15.8937]
[1723184647680,27.22,157.34,157.3,46.27122761]
[1723184647981,27.22,157.34,157.3,45.0]
[1723184648153,27.22,157.33,157.3,45.0]
[1723184648354,27.22,157.33,157.29,22.251]
[1723184648555,27.22,157.31,157.29,22.251]
[1723184649454,27.22,157.31,157.3,6.3572]
[1723184649651,27.22,157.33,157.3,6.3572]
[1723184649871,6.3546,157.37,157.32,6.3564]
[1723184650096,27.22,157.35,157.32,15.891]
[1723184650369,17.73797916,157.43,157.35,6.3551]
[1723184650370,27.22,157.37,157.35,6.3551]
[1723184650573,27.22,157.37,157.36,45.0]
[1723184650750,27.22,157.39,157.35,6.3548]
[1723184650956,27.22,157.39,157.36,45.0]
[1723184651276,15.9043,157.42,157.36,45.0]
[1723184651277,6.353,157.41,157.36,51.3545]
[1723184651469,27.22,157.39,157.36,51.3545]
[1723184651673,27.22,157.39,157.36,45.0]
[1723184652376,6.3533,157.4,157.36,45.0]
[1723184652551,6.3528,157.41,157.36,45.0]
[1723184652756,27.22,157.39,157.36,45.0]
[1723184653163,27.22,157.37,157.35,15.888]
[1723184653353,27.22,157.37,157.33,6.356]
[1723184653556,27.22,157.35,157.31,15.8912]
[1723184655372,27.22,157.35,157.34,6.3556]
[1723184656184,27.22,157.35,157.34,45.0]
[1723184656469,27.22,157.35,157.34,6.3556]
[1723184656865,27.22,157.37,157.34,51.3556]
[1723184657065,27.22,157.37,157.35,45.0]
[1723184657469,27.22,157.37,157.34,6.3556]
[1723184657652,27.22,157.35,157.33,6.356]
[1723184658450,27.22,157.35,157.31,22.2478]
[1723184658670,27.22,157.33,157.31,22.2478]
[1723184658880,27.22,157.33,157.32,6.3564]
[1723184659057,27.22,157.35,157.33,6.3559]
[1723184659566,27.22,157.35,157.31,15.8912]
[1723184659759,27.22,157.35,157.32,45.0]
[1723184659960,27.22,157.35,157.33,6.356]
[1723184660580,27.22,157.35,157.34,6.3556]
[1723184660883,6.3532,157.4,157.35,6.355]
[1723184660884,27.22,157.37,157.35,6.355]
[1723184662176,27.22,157.37,157.34,15.8891]
[1723184662376,6.3541,157.38,157.33,6.356]
[1723184662377,27.22,157.35,157.33,6.356]
[1723184662763,27.22,157.35,157.32,6.3564]
[1723184663167,27.22,157.33,157.29,6.3573]
[1723184663366,27.22,157.31,157.29,6.3573]
[1723184663885,27.22,157.33,157.32,6.3564]
[1723184664277,27.22,157.33,157.31,15.8912]
[1723184665167,27.22,157.33,157.31,22.248]
[1723184666390,27.22,157.33,157.31,15.8912]
[1723184666576,27.22,157.33,157.31,22.248]
[1723184667490,27.22,157.33,157.28,6.3577]
[1723184667681,27.22,157.3,157.27,15.8956]
[1723184667861,27.22,157.28,157.27,22.254]
[1723184668073,27.22,157.3,157.27,15.8956]
[1723184668798,27.22,157.3,157.27,22.2537]
[1723184669173,27.22,157.3,157.28,6.358]
[1723184669869,27.22,157.3,157.27,15.8956]
[1723184670071,27.22,157.28,157.25,6.3592]
[1723184670483,27.22,157.26,157.25,6.3592]
[1723184670696,27.22,157.26,157.24,6.3596]
[1723184671077,27.22,157.26,157.25,6.3593]
[1723184673499,6.3593,157.25,157.2,15.9031]
[1723184673680,27.22,157.22,157.2,22.264]
[1723184674214,27.22,157.22,157.21,6.3609]
[1723184675166,22.5276,157.27,157.23,22.26]
[1723184675167,27.22,157.24,157.23,22.26]
[1723184675969,27.22,157.24,157.21,6.3608]
[1723184676173,27.22,157.22,157.21,6.3608]
[1723184678874,27.22,157.22,157.18,6.2793]
[1723184679176,16.1691,157.27,157.17,22.2684]
[1723184679177,27.22,157.2,157.17,22.2684]
[1723184679394,27.22,157.2,157.18,51.3618]
[1723184679581,27.22,157.2,157.19,6.3617]
[1723184680807,27.22,157.2,157.19,51.3617]
[1723184682300,27.22,157.2,157.17,15.9063]
[1723184682475,27.22,157.18,157.17,15.9063]
[1723184683409,27.22,157.18,157.15,6.3633]
[1723184683716,27.22,157.16,157.15,6.3633]
[1723184685388,27.22,157.16,157.15,51.3633]
[1723184685590,27.22,157.16,157.15,6.3633]
[1723184687304,27.22,157.16,157.15,51.3633]
[1723184688490,27.22,157.16,157.15,6.3633]
[1723184689709,27.22,157.16,157.14,6.3637]
[1723184690789,27.22,157.16,157.13,15.9094]
[1723184690987,27.22,157.14,157.13,15.9094]
[1723184691791,27.22,157.14,157.13,22.2735]
[1723184692107,27.22,157.14,157.1,6.2429]
[1723184692292,27.22,157.11,157.09,15.9136]
[1723184693811,27.22,157.11,157.09,22.2793]
[1723184695510,1.53318147,157.1,157.08,6.3661]
[1723184695697,27.22,157.09,157.08,6.3661]
[1723184697215,27.22,157.09,157.08,22.2815]
[1723184699713,27.22,157.09,157.08,15.9154]
[1723184700098,27.22,157.09,157.07,6.3665]
[1723184700292,1.53318147,157.08,157.05,23.0960353]
[1723184700608,27.22,157.06,157.05,23.0960353]
[1723184700819,27.22,157.06,157.05,68.0960353]
[1723184703222,27.22,157.06,157.05,16.7290353]
[1723184703409,27.22,157.06,157.05,0.8107353]
[1723184703918,27.22,157.06,157.05,7.1780353]
[1723184705114,27.22,157.06,157.05,0.8107353]
[1723184705814,27.22,157.06,157.05,7.1780353]
[1723184706918,27.22,157.06,157.05,0.8107353]
[1723184709293,28.75318147,157.06,157.05,0.8107353]
[1723184709718,26.61008147,157.06,157.05,0.8107353]
[1723184710023,18.71,157.06,157.05,0.8107353]
[1723184710389,22.2322,157.09,157.05,0.8107353]
[1723184710598,18.71,157.06,157.05,0.8107353]
[1723184710796,25.0769,157.06,157.05,0.8107353]
[1723184711248,6.3675,157.05,157.0,6.369]
[1723184711413,18.71,157.01,157.0,6.369]
[1723184712299,18.71,157.01,157.0,51.369]
[1723184712904,16.5939,157.25,157.05,6.5891]
[1723184713109,74.84,157.2,157.06,24.4333812]
[1723184713318,16.5939,157.17,157.07,45.0]
[1723184713517,16.5939,157.17,157.08,15.9145]
[1723184713719,6.365,157.11,157.05,6.367]
[1723184713921,18.71,157.07,157.06,6.3668]
[1723184714126,6.3646,157.12,157.04,15.9185]
[1723184714127,18.71,157.08,157.07,6.3664]
[1723184714327,18.71,157.08,157.07,22.2828]
[1723184714499,18.71,157.09,157.08,6.3659]
[1723184715015,18.71,157.09,157.07,15.9164]
[1723184715219,74.84,157.12,157.08,6.3661]
[1723184715433,6.3633,157.15,157.09,6.3656]
[1723184715731,27.27,157.11,157.09,6.3657]
[1723184716708,27.27,157.11,157.07,22.2825]
[1723184716908,27.27,157.09,157.07,22.2825]
[1723184717226,27.27,157.09,157.08,6.3661]
[1723184717528,27.27,157.09,157.07,22.2828]
[1723184717720,27.27,157.09,157.07,15.9164]
[1723184718128,27.27,157.09,157.04,6.3677]
[1723184718324,27.27,157.07,157.04,6.3677]
[1723184719748,27.27,157.07,157.03,22.2879]
[1723184720033,27.27,157.05,157.01,6.3688]
[1723184720628,27.27,157.05,157.03,15.9205]
[1723184720935,15.0079,157.1,157.05,6.367]
[1723184720936,27.27,157.07,157.05,6.367]
[1723184722426,15.0079,157.1,157.06,15.9169]
[1723184722607,27.27,157.1,157.06,15.9169]
[1723184723421,27.27,157.08,157.06,15.9169]
[1723184723625,27.27,157.08,157.04,6.3677]
[1723184724444,27.27,157.06,157.03,6.3681]
[1723184726533,27.27,157.06,157.02,15.9207]
[1723184726534,27.27,157.04,157.02,22.2892]
[1723184727041,27.27,157.06,157.02,15.9207]
[1723184727228,27.27,157.06,157.03,6.3681]
[1723184730041,27.27,157.06,157.02,15.9207]
[1723184730246,27.27,157.06,157.03,6.3682]
[1723184731234,27.27,157.06,157.02,22.2892]
[1723184731642,27.27,157.04,157.0,6.3693]
[1723184731949,27.27,157.04,156.99,15.9244]
[1723184731950,27.27,157.03,157.01,6.3686]
[1723184732323,27.27,157.03,157.01,6.3689]
[1723184734550,27.27,157.03,157.02,6.3686]
[1723184735042,27.27,157.03,157.01,6.3689]
[1723184735348,27.27,157.03,156.99,15.9244]
[1723184735545,27.27,157.01,156.99,22.2938]
[1723184735840,27.27,157.01,156.99,15.9244]
[1723184736248,27.27,157.01,157.0,6.3694]
[1723184736953,27.27,157.01,156.99,22.2941]
[1723184737454,27.27,157.01,157.0,6.3694]
[1723184737827,18.72,157.01,157.0,6.3694]
[1723184738764,16.5788,157.07,157.0,45.0]
[1723184738925,18.72,157.01,157.0,6.3694]
[1723184740849,6.367,157.06,156.99,15.9244]
[1723184741148,18.72,157.01,157.0,6.3694]
[1723184742952,18.72,157.01,156.99,15.9244]
[1723184743259,18.72,157.0,156.97,6.3705]
[1723184743433,18.72,156.98,156.97,6.3705]
[1723184744129,18.72,156.98,156.96,15.9273]
[1723184744334,6.3694,157.0,156.95,6.3714]
[1723184744335,18.72,156.97,156.95,6.3714]
[1723184744532,18.72,156.96,156.95,6.3714]
[1723184744936,18.72,156.96,156.93,22.3023]
[1723184745148,15.557,157.0,156.93,22.3023]
[1723184745149,18.72,156.94,156.93,22.3023]
[1723184745444,18.72,156.94,156.93,6.3722]
[1723184746366,18.72,156.94,156.92,6.3726]
[1723184746573,18.72,156.93,156.92,6.3726]
[1723184752150,18.72,156.93,156.91,6.373]
[1723184752367,18.72,156.92,156.91,6.373]
[1723184752550,18.72,156.92,156.9,15.9335]
[1723184752765,18.72,156.91,156.89,0.8107353]
[1723184752952,18.72,156.9,156.89,0.8107353]
[1723184755082,15.8249,156.94,156.89,7.1842353]
[1723184755396,18.72,156.9,156.89,7.1842353]
[1723184755550,18.30856398,156.94,156.89,16.7446353]
[1723184755866,18.72,156.9,156.89,16.7446353]
[1723184756352,18.72,156.9,156.89,23.1184353]
[1723184759460,18.72,156.9,156.89,16.7446353]
[1723184759675,18.72,156.9,156.89,23.1184353]
[1723184761890,18.72,156.9,156.89,0.8107353]
[1723184762362,99.9734,156.9,156.89,0.8107353]
[1723184762872,93.6,156.9,156.89,0.8107353]
[1723184763180,18.72,156.9,156.89,7.1845353]
[1723184763366,18.72,156.9,156.89,0.8107353]
[1723184764495,15.8249,156.94,156.9,6.3734]
[1723184764677,18.72,156.91,156.89,0.8107353]
[1723184764855,18.72,156.9,156.89,0.8107353]
[1723184765594,99.9734,156.9,156.89,0.8107353]
[1723184765769,74.7,156.9,156.82,15.9418]
[1723184765960,27.35,156.83,156.82,15.9418]
[1723184766162,27.35,156.83,156.79,15.9447]
[1723184766584,27.35,156.83,156.81,6.3768]
[1723184766959,27.35,156.83,156.79,15.9447]
[1723184766960,27.35,156.83,156.8,6.3775]
[1723184767161,27.35,156.81,156.79,22.3225]
[1723184767456,27.35,156.8,156.77,6.3787]
[1723184767665,27.35,156.8,156.74,7.1906353]
[1723184767666,27.35,156.78,156.74,7.1906353]
[1723184767967,27.35,156.75,156.74,7.1906353]
[1723184768175,27.35,156.75,156.74,0.8107353]
[1723184768380,27.35,156.75,156.72,21.6422353]
[1723184768680,27.35,156.73,156.72,21.6422353]
[1723184769087,27.35,156.73,156.72,15.2617353]
[1723184769884,27.35,156.73,156.72,21.6425353]
[1723184770392,27.35,156.73,156.7,6.3813]
[1723184770559,27.35,156.73,156.71,6.381]
[1723184770757,27.35,156.73,156.71,15.953]
[1723184770979,22.0941,156.78,156.72,6.3808]
[1723184771190,27.35,156.74,156.72,6.3808]
[1723184771755,27.35,156.74,156.73,6.3803]
[1723184772272,27.35,156.76,156.73,15.9499]
[1723184772675,27.35,156.76,156.74,6.3798]
[1723184773488,27.35,156.76,156.73,22.3302]
[1723184773665,27.35,156.76,156.74,6.3799]
[1723184773866,27.35,156.76,156.75,6.3795]
[1723184774163,27.35,156.76,156.73,15.9499]
[1723184774488,27.35,156.76,156.75,6.3795]
[1723184774691,27.35,156.78,156.76,6.3788]
[1723184775492,27.35,156.78,156.73,15.9499]
[1723184775694,27.35,156.78,156.77,6.3787]
[1723184775997,27.35,156.78,156.76,6.3791]
[1723184776877,27.35,156.78,156.75,15.9479]
[1723184777186,27.35,156.76,156.75,22.3272]
[1723184777799,27.35,156.78,156.76,6.3789]
[1723184778172,27.35,156.78,156.77,6.3787]
[1723184778783,27.35,156.8,156.78,6.3781]
[1723184779895,27.35,156.8,156.75,15.9479]
[1723184780299,15.4277,156.82,156.77,6.3786]
[1723184780480,27.35,156.79,156.78,6.3783]
[1723184782297,27.35,156.81,156.8,6.3774]
[1723184782501,27.35,156.81,156.78,6.3779]
[1723184782701,27.35,156.79,156.77,15.9459]
[1723184783001,27.35,156.79,156.78,6.3783]
[1723184783496,27.35,156.81,156.79,6.3777]
[1723184784010,27.35,156.81,156.77,15.9459]
[1723184784298,27.35,156.8,156.79,6.3778]
[1723184784690,27.35,156.8,156.77,15.9459]
[1723184784890,27.35,156.8,156.78,6.3779]
[1723184785674,27.35,156.8,156.77,22.3246]
[1723184785891,27.35,156.8,156.77,15.9459]
[1723184786415,27.35,156.8,156.79,6.3779]
[1723184787510,15.8942,156.85,156.8,15.9438]
[1723184787680,15.8942,156.85,156.84,6.3759]
[1723184787681,27.35,156.85,156.84,6.3759]
[1723184787881,27.35,156.85,156.74,38.088]
[1723184787882,27.35,156.85,156.74,6.1892]
[1723184788101,27.35,156.81,156.8,6.3775]
[1723184788304,27.35,156.81,156.79,15.9444]
[1723184788611,27.35,156.81,156.75,60.9479]
[1723184788779,27.35,156.79,156.75,15.9479]
[1723184790076,27.35,156.79,156.76,45.0]
[1723184790281,27.35,156.79,156.78,6.3783]
[1723184790482,27.35,156.81,156.79,6.3779]
[1723184790715,27.35,156.81,156.77,15.946]
[1723184790922,27.35,156.79,156.77,22.3245]
[1723184791206,27.35,156.79,156.78,6.3783]
[1723184791714,27.35,156.81,156.77,15.946]
[1723184792009,27.35,156.81,156.8,6.3775]
[1723184792304,27.35,156.81,156.79,22.3218]
[1723184792608,27.35,156.81,156.79,15.9439]
[1723184793020,27.35,156.81,156.77,6.3783]
[1723184793314,27.35,156.79,156.77,6.3783]
[1723184793684,27.35,156.79,156.76,22.3269]
[1723184793885,27.35,156.79,156.77,6.3787]
[1723184794515,27.35,156.79,156.78,6.3783]
[1723184795801,27.35,156.81,156.79,6.3779]
[1723184796181,27.35,156.81,156.78,6.3783]
[1723184796410,27.35,156.81,156.79,15.9448]
[1723184796602,27.35,156.81,156.8,6.3775]
[1723184797300,27.35,156.81,156.79,15.9448]
[1723184798418,27.35,156.81,156.79,22.3227]
[1723184798910,27.35,156.81,156.79,15.9448]
[1723184799111,27.35,156.83,156.79,15.9448]
[1723184799321,27.35,156.83,156.82,6.3767]
[1723184799614,27.35,156.85,156.82,6.3767]
[1723184800315,27.35,156.83,156.8,45.0]
[1723184801110,27.35,156.83,156.8,51.3773]
[1723184803018,27.35,156.83,156.8,51.3775]
[1723184803222,27.35,156.83,156.8,6.3775]
[1723184804398,27.35,156.83,156.8,6.3773]
[1723184804604,27.35,156.83,156.79,15.9448]
[1723184804805,27.35,156.83,156.8,45.0]
[1723184805811,15.0834,156.89,156.84,15.9397]
[1723184806004,27.35,156.86,156.8,51.0769]
[1723184806206,27.35,156.84,156.8,51.0769]
[1723184806490,27.35,156.84,156.82,15.9409]
[1723184806917,27.35,156.86,156.84,6.3758]
[1723184807521,27.35,156.86,156.82,15.9409]
[1723184807726,27.35,156.86,156.84,6.3758]
[1723184807902,27.35,156.86,156.83,45.0]
[1723184808297,27.35,156.86,156.83,51.3759]
[1723184809121,27.35,156.86,156.85,6.3755]
[1723184809326,27.35,156.86,156.84,6.3758]
[1723184810896,27.35,156.86,156.82,15.9409]
[1723184811102,27.35,156.84,156.78,15.9451]
[1723184811302,27.35,156.81,156.78,15.9451]
[1723184811523,15.0834,156.89,156.81,15.9422]
[1723184811824,27.35,156.83,156.81,15.9422]
[1723184812005,27.35,156.83,156.81,22.3193]
[1723184812204,27.35,156.83,156.81,15.9422]
[1723184812724,27.35,156.83,156.81,22.3191]
[1723184813298,27.35,156.83,156.79,6.3775]
[1723184813498,27.35,156.83,156.8,45.0]
[1723184813721,27.35,156.83,156.81,6.377]
[1723184813928,27.35,156.83,156.8,6.3775]
[1723184814600,27.35,156.85,156.81,15.9426]
[1723184814804,27.35,156.85,156.83,6.3759]
[1723184815210,27.35,156.85,156.81,15.9426]
[1723184815418,6.3747,156.87,156.81,15.9426]
[1723184815419,27.35,156.83,156.81,22.3196]
[1723184816415,27.35,156.83,156.82,6.3767]
[1723184816733,27.35,156.85,156.83,6.3759]
[1723184819225,27.35,156.85,156.81,15.9426]
[1723184819408,27.35,156.83,156.81,15.9426]
[1723184820735,27.35,156.85,156.84,6.3758]
[1723184821307,27.35,156.85,156.83,6.3762]
[1723184821833,15.0834,156.89,156.82,45.0]
[1723184821834,27.35,156.87,156.82,45.0]
[1723184822212,27.35,156.87,156.86,22.3127]
[1723184822831,27.35,156.87,156.86,15.9377]
[1723184823139,27.35,156.87,156.85,6.3753]
[1723184823444,33.725,156.87,156.82,45.0]
[1723184823736,27.35,156.84,156.82,51.3767]
[1723184825116,27.35,156.84,156.8,22.3209]
[1723184825323,27.35,156.82,156.8,22.3209]
[1723184826237,27.35,156.82,156.81,6.3771]
[1723184826533,27.35,156.82,156.8,15.9436]
[1723184828162,27.35,156.82,156.77,15.9467]
[1723184828317,27.35,156.79,156.77,15.9467]
[1723184828516,27.35,156.79,156.78,45.0]
[1723184829042,27.35,156.79,156.77,15.9467]
[1723184829247,27.35,156.79,156.75,6.3795]
[1723184829546,27.35,156.77,156.76,6.3791]
[1723184830118,27.35,156.77,156.75,6.3795]
[1723184830325,27.35,156.77,156.74,15.9497]
[1723184830526,27.35,156.75,156.71,15.9527]
[1723184830723,27.35,156.75,156.74,6.3799]
[1723184832132,27.35,156.75,156.73,22.3303]
[1723184832322,27.35,156.75,156.74,6.3799]
[1723184833146,27.35,156.75,156.71,6.3808]
[1723184833347,27.35,156.73,156.71,6.3808]
[1723184833730,27.35,156.73,156.7,15.9538]
[1723184834051,27.35,156.71,156.7,15.9538]
[1723184834239,27.35,156.71,156.66,15.9572]
[1723184834446,27.35,156.69,156.68,6.3823]
[1723184836218,27.35,156.69,156.66,15.9572]
[1723184836642,27.35,156.67,156.66,15.9572]
[1723184837140,27.35,156.69,156.68,6.3824]
[1723184838936,27.35,156.69,156.66,15.9572]
[1723184839140,27.35,156.69,156.68,6.3824]
[1723184839821,27.35,156.71,156.69,6.3819]
[1723184840048,27.35,156.71,156.68,15.9551]
[1723184840254,27.35,156.71,156.7,6.3816]
[1723184841034,27.35,156.73,156.71,6.3809]
[1723184841249,27.35,156.73,156.68,15.9551]
[1723184841449,27.35,156.69,156.68,15.9551]
[1723184841754,27.35,156.69,156.68,22.3375]
[1723184842532,27.35,156.69,156.68,67.3375]
[1723184843354,27.35,156.69,156.68,15.9551]
[1723184846045,27.35,156.69,156.68,22.3375]
[1723184846435,27.35,156.69,156.68,15.9551]
[1723184846751,27.35,156.69,156.67,6.3827]
[1723184847161,27.35,156.69,156.68,6.3824]
[1723184848328,27.35,156.69,156.67,22.3389]
[1723184848527,27.35,156.68,156.67,22.3389]
[1723184849257,27.35,156.68,156.67,15.9562]
[1723184851167,27.35,156.68,156.67,22.339]
[1723184851333,27.35,156.72,156.67,22.339]
[1723184851334,15.4584,156.75,156.7,6.3816]
[1723184851533,15.4584,156.75,156.67,15.9562]
[1723184851534,6.3804,156.73,156.68,6.3823]
[1723184851746,6.3804,156.73,156.69,6.382]
[1723184851964,27.35,156.7,156.67,22.3386]
[1723184852262,27.35,156.68,156.67,22.3386]
[1723184853161,27.35,156.69,156.68,6.382]
[1723184853879,18.8,156.69,156.68,6.382]
[1723184855052,6.3803,156.74,156.68,6.382]
[1723184855248,18.8,156.69,156.68,6.382]
[1723184857672,18.8,156.69,156.68,51.382]
[1723184859980,18.8,156.71,156.68,60.956]
[1723184860278,21.838,156.75,156.7,6.3816]
[1723184860480,15.4584,156.75,156.68,15.956]
[1723184860655,20.0,156.74,156.68,15.956]
[1723184860978,18.8,156.69,156.68,15.956]
[1723184861158,18.8,156.69,156.68,60.956]
[1723184861880,18.8,156.69,156.64,15.9592]
[1723184862083,75.2,156.72,156.64,15.9592]
[1723184862084,18.8,156.65,156.64,15.9592]
[1723184862251,18.8,156.65,156.64,22.3432]
[1723184864756,18.8,156.65,156.64,15.9592]
[1723184865084,18.8,156.65,156.61,15.9629]
[1723184865252,18.8,156.62,156.61,22.3481]
[1723184867069,18.8,156.62,156.61,15.9629]
[1723184867264,18.8,156.62,156.58,16.7768353]
[1723184867470,6.3845,156.63,156.58,23.1629353]
[1723184867864,18.8,156.59,156.58,23.1629353]
[1723184868964,18.8,156.59,156.58,0.8107353]
[1723184870255,15.6992,156.62,156.58,0.8107353]
[1723184870453,18.8,156.59,156.58,0.8107353]
[1723184871393,18.8,156.59,156.58,7.1972353]
[1723184871961,75.2,156.64,156.61,6.3851]
[1723184872155,18.8,156.62,156.6,15.9639]
[1723184872382,18.8,156.61,156.6,22.3495]
[1723184872784,18.8,156.61,156.6,15.9639]
[1723184873476,18.8,156.61,156.58,52.1971353]
[1723184873674,18.8,156.59,156.58,52.1971353]
[1723184873986,6.3836,156.65,156.6,6.3856]
[1723184874189,18.8,156.61,156.6,6.3856]
[1723184874389,18.8,156.62,156.6,6.3856]
[1723184874570,18.8,156.61,156.6,6.3856]
[1723184874771,21.8498,156.66,156.6,6.3856]
[1723184874971,18.8,156.61,156.6,6.3856]
[1723184875193,18.8,156.61,156.59,22.3504]
[1723184876419,18.8,156.6,156.59,22.3504]
[1723184876693,18.8,156.6,156.59,15.9644]
[1723184878490,18.8,156.6,156.58,52.1972353]
[1723184878998,18.8,156.6,156.59,6.3861]
[1723184879975,18.8,156.6,156.58,52.1971353]
[1723184880180,18.8,156.59,156.58,52.1971353]
[1723184881206,6.3845,156.63,156.58,52.1971353]
[1723184881207,18.8,156.6,156.58,52.1971353]
[1723184882190,18.8,156.59,156.58,52.1971353]
[1723184882378,6.3845,156.63,156.58,52.1971353]
[1723184882379,18.8,156.6,156.58,52.1971353]
[1723184883181,18.8,156.59,156.58,45.8107353]
[1723184883780,18.8,156.6,156.58,52.1972353]
[1723184884388,15.4665,156.66,156.58,61.7761353]
[1723184884699,18.8,156.62,156.61,6.385]
[1723184885081,18.8,156.62,156.59,45.0]
[1723184885283,18.8,156.6,156.59,45.0]
[1723184886086,18.8,156.61,156.59,51.3859]
[1723184886307,18.8,156.6,156.59,51.3859]
[1723184887389,18.8,156.61,156.6,6.3856]
[1723184887590,18.7,156.61,156.6,6.3856]
[1723184887998,18.7,156.61,156.59,6.386]
[1723184888314,18.8,156.6,156.59,6.386]
[1723184888809,18.8,156.64,156.6,6.3856]
[1723184888985,25.1841,156.64,156.59,6.386]
[1723184889188,18.8,156.6,156.59,6.386]
[1723184891614,18.8,156.6,156.58,0.8107353]
[1723184891787,18.8,156.59,156.58,0.8107353]
[1723184891987,18.8,156.59,156.58,7.1972353]
[1723184893535,18.8,156.59,156.55,34.769]
[1723184893536,18.8,156.59,156.53,6.62504233]
[1723184893537,22.7116,156.54,156.53,6.62504233]
[1723184893818,22.7116,156.54,156.42,16.7932353]
[1723184893819,6.3901,156.49,156.42,16.7932353]
[1723184893988,18.8,156.45,156.43,6.3922]
[1723184894188,18.8,156.44,156.43,6.3922]
[1723184894398,18.8,156.44,156.42,23.1862353]
[1723184894700,18.8,156.43,156.42,23.1862353]
[1723184894904,18.8,156.44,156.42,23.1862353]
[1723184895104,18.8,156.43,156.42,23.1862353]
[1723184895519,6.3906,156.48,156.43,6.3925]
[1723184895726,27.49,156.46,156.44,6.3921]
[1723184896392,27.49,156.46,156.43,6.3926]
[1723184896591,27.49,156.46,156.44,6.392]
[1723184896787,27.49,156.46,156.42,16.7932353]
[1723184897218,27.49,156.46,156.42,23.1858353]
[1723184897402,27.49,156.46,156.42,16.7932353]
[1723184897612,27.49,156.46,156.44,6.392]
[1723184898302,27.49,156.46,156.45,6.3918]
[1723184898497,16.3235,156.54,156.5,6.3893]
[1723184898708,16.3235,156.54,156.48,15.9762]
[1723184898709,27.49,156.51,156.48,22.3663]
[1723184899108,16.3235,156.54,156.48,15.9762]